Cogmind - Beta 15 @@@ ROGUE MODE // 2025.09.10 @ 17:26:35 Player: odium reigns Result: Destroyed by D-53 Grenadier with Mini Grenade Launcher Performance ------------- Evolutions (0) 0 Regions Visited (2) 400 Robots Destroyed (18) 90 Value Destroyed (236) 236 Prototype IDs (1) 20 Alien Tech Used (0) 0 Bonus (0) 0 TOTAL SCORE: 746 Bonus ------- None Cogmind --------- Core Integrity 0/250 Matter 270/300 Energy 100/100 System Corruption 0% Temperature Cool (4) Movement Core (100) Ox1 Location -10/Mines Parts ------- > --- POWER (1) -------- (None) > --- PROPULSION (2) --- (None) > --- UTILITY (2) ------ Small Storage Unit Improved Targeting Computer > --- WEAPON (2) ------- Light Assault Rifle > --- INVENTORY (8) ---- Small Matter Pod (50) Improved Targeting Computer Improved Targeting Computer Improved Targeting Computer Decoy Drone Bay Peak State ------------ > --- POWER ------------ Light Nuclear Core > --- PROPULSION ------- Aluminum Leg Aluminum Leg > --- UTILITY ---------- Small Storage Unit Improved Targeting Computer > --- WEAPON ----------- Light Assault Rifle Improved Assault Rifle > --- INVENTORY -------- Aluminum Leg Improved Targeting Computer Improved Targeting Computer Improved Targeting Computer Decoy Drone Bay Light Assault Rifle Light Assault Rifle [Rating: 14] Favorites ----------- Power Light Nuclear Core Engine Light Ion Engine Power Core Light Nuclear Core Propulsion Aluminum Leg Treads Light Treads Leg Aluminum Leg Utility Small Storage Unit Storage Small Storage Unit Processor Improved Targeting Computer Weapon Light Assault Rifle Ballistic Gun Light Assault Rifle Build | -11 -10 -10 ------- Run | Yrd Mat Min Slots Evolved . | . . . Power . | . . . Propulsion . | . . . Utility . | . . . Weapon . | . . . Parts Attached 14 | 6 2 6 Power 2 | 1 . 1 Engine 1 | 1 . . Core 1 | . . 1 Reactor . | . . . Propulsion 4 | 2 . 2 Treads 2 | 2 . . Leg 2 | . . 2 Wheel . | . . . Hover . | . . . Flight . | . . . Utility 2 | 1 1 . Device . | . . . Storage 1 | 1 . . Processor 1 | . 1 . Hackware . | . . . Protection . | . . . Artifact . | . . . Weapon 6 | 2 1 3 Energy Gun . | . . . Energy Cannon . | . . . Ballistic Gun 6 | 2 1 3 Ballistic Cannon . | . . . Launcher . | . . . Special Weapon . | . . . Impact Weapon . | . . . Slashing Weapon . | . . . Piercing Weapon . | . . . Special Melee Weapon . | . . . Unidentified Prototypes 1 | . 1 . Parts Lost 8 | . 1 7 Power 2 | . . 2 Propulsion 2 | . . 2 Utility . | . . . Weapon 4 | . 1 3 Highest Loss Streak 6 | . 1 6 To Critical Strikes . | . . . Average Backups 7 | 4 7 7 Power . | . 1 . Propulsion 2 | 3 4 . Utility 2 | . 1 4 Weapon 1 | . 1 2 Tool/Special . | . . . Unused Backups 14 | . 6 8 Power 1 | . 1 . Propulsion 6 | . 4 2 Utility 5 | . . 5 Weapon 2 | . 1 1 Tool/Special . | . . . Average Slot Usage (%) 97 | . 92 99 Engine 5 | . 14 . Core 8 | . . 13 Treads 10 | . 28 2 Leg 16 | . . 25 Storage 14 | . 14 14 Processor 11 | . 7 14 Ballistic Gun 27 | . 27 28 Peak Build Rating 14 | 6 11 14 Average Rating 10 | 5 8 13 On Entrance 5 | . 6 11 Naked Turns . | . . . Heaviest Build 14 | 10 12 14 Greatest Support 40 | 40 40 40 Greatest Overweight (x) 1 | . . 1 Average Overweight (x) . | . . . Largest Inventory Capacity 8 | 8 8 8 Average Capacity 7 | 7 8 8 Most Carried 8 | 8 8 8 Average Carried 7 | 5 7 7 Final Capacity 8 | 8 8 8 Final Carried 8 | 8 8 6 Class Distribution -------------------- 54% | Mutant 45% | Scavenger-Mutant Dominant Class ---------------- Mutant | -10/Materials Scavenger-Mutant | -10/Mines Resources | -11 -10 -10 ----------- Run | Yrd Mat Min Matter Collected 515 | 298 100 117 Remotely . | . . . Salvage Created 524 | 129 206 189 Parts 31 | 3 12 16 Haulers Intercepted . | . . . Recyclers Shooed 2 | . 2 . Parts Field Recycled . | . . . Retrieved Matter . | . . . Parts Self-Destructed . | . . . Prevented . | . . . Kills | -11 -10 -10 ------- Run | Yrd Mat Min Combat Hostiles Destroyed 9 | . 1 8 Guns 9 | . 1 8 Classes Destroyed 6 | 3 2 1 Worker 3 | 1 2 . Tunneler 2 | 2 . . Recycler 2 | 1 1 . Watcher 2 | . 2 . Swarmer 6 | . . 6 Grunt 3 | . 1 2 Best Kill Streak 4 | 1 4 3 Combat Bots Only 3 | . 1 3 Max Kills in Single Turn 1 | 1 1 1 Gunslinging . | . . . Exploded . | . . . Melee . | . . . Uniques/NPCs Destroyed . | . . . Combat | -11 -10 -10 -------- Run | Yrd Mat Min Hostile Shots Fired 69 | . 6 63 Missed 13 | . 1 12 Hits 56 | . 5 51 Projectile 56 | . 5 51 AOE 12 | . . 12 Damage Taken 997 | . 57 940 Core 262 | . . 262 Absorbed by Shields . | . . . Core Remaining (%) 100 | 100 . . Volleys Fired 66 | 19 21 26 Largest 2 | 2 2 2 Hottest 43 | 40 43 43 Shots Fired 132 | 38 42 52 Gun 132 | 38 42 52 Cannon . | . . . Launcher . | . . . Special . | . . . Kinetic 132 | 38 42 52 Thermal . | . . . Explosive . | . . . Electromagnetic . | . . . Robot Hit Streak 12 | 10 12 10 Robot Miss Streak 2 | 2 2 2 Penetration Max . | . . . Secondary Targets 1 | . . 1 Max Gunslinging Chain 1 | . . 1 Shots Hit Robots 93 | 27 29 37 Core Hits 35 | 7 12 16 Critical Kills . | . . . Critical Parts Destroyed . | . . . Critical Strikes . | . . . Melee Attacks . | . . . Impact . | . . . Slashing . | . . . Piercing . | . . . Sneak Attacks . | . . . Combat Hostiles . | . . . Follow-up Attacks . | . . . Damage Inflicted 974 | 225 324 425 Guns 967 | 225 324 418 Cannons . | . . . Explosions . | . . . Melee . | . . . Ramming 7 | . . 7 Kinetic 967 | 225 324 418 Thermal . | . . . Explosive . | . . . Electromagnetic . | . . . Impact . | . . . Slashing . | . . . Piercing . | . . . Highest Corruption . | . . . Average Corruption . | . . . Corruption Purged . | . . . Corruption Blocked . | . . . Overload Shots . | . . . Overflow Damage . | . . . Projectiles . | . . . Explosions . | . . . Melee . | . . . Knockbacks . | . . . Impact . | . . . Kinetic . | . . . Secondary . | . . . Self-Inflicted Damage . | . . . Shots . | . . . Rammed . | . . . Targets Rammed 2 | . . 2 Kicked 2 | . . 2 Crushed . | . . . Highest Temperature 29 | . 16 29 Average Temperature 7 | . 3 8 Received Heat Transfer 141 | . 30 111 Siege Activations . | . . . Martial Activations . | . . . Shielding Activations . | . . . Robots Disrupted . | . . . Combat Hostiles . | . . . Robots Corrupted . | . . . Combat Hostiles . | . . . Parts Fried . | . . . Impact Corruptions . | . . . Robots Melted . | . . . Combat Hostiles . | . . . Parts Melted . | . . . Heat Transferred . | . . . Parts Sabotaged . | . . . Parts Stolen . | . . . Parts Stripped . | . . . Power Chain Reactions . | . . . Alert | -11 -10 -10 ------- Run | Yrd Mat Min Maximum Alert Level . | . . . Low Security (%) 100 | 100 100 100 Level 1 . | . . . Level 2 . | . . . Level 3 . | . . . Level 4 . | . . . Level 5 . | . . . High Security . | . . . Max Security . | . . . Peak Influence 70 | 5 37 70 Initial . | . . . Average 11 | 1 9 16 Influence Increases 269 | 20 59 190 Destroy 0b10 Robot/C 180 | . 20 160 Destroy 0b10 Robot/NC 45 | 20 25 . Destroy Leader 44 | . 14 30 Influence Decreases 269 | 20 59 190 Time Decay 205 | 20 59 126 Lost Part 64 | . . 64 Squads Dispatched 1 | . 1 . Investigation 1 | . 1 . Extermination . | . . . Reinforcement . | . . . Assault . | . . . Garrison . | . . . Intercept . | . . . Searches Triggered . | . . . Construction Impeded . | . . . Haulers Reinforced . | . . . Active Scanning Responses . | . . . Cargo Convoy Interrupts . | . . . Stealth | -11 -10 -10 --------- Run | Yrd Mat Min Distress Signals . | . . . Communications Jammed . | . . . Distress Signals . | . . . Times Spotted 16 | . 6 10 Peak Tracking Total 3 | . 2 3 Tactical Retreats . | . . . Traps | -11 -10 -10 ------- Run | Yrd Mat Min Traps Triggered 1 | . 1 . Indirectly . | . . . Trap Hack Attempts . | . . . Triggered . | . . . Disarmed . | . . . Reprogrammed . | . . . Reused . | . . . Traps Extracted . | . . . Installed . | . . . Triggered . | . . . Machines | -11 -10 -10 ---------- Run | Yrd Mat Min Machines Disabled . | . . . Max in Single Turn . | . . . Machines Repaired . | . . . Machines Dismantled . | . . . Machines Sabotaged . | . . . Overloaded Fab Kills . | . . . Hacking | -11 -10 -10 --------- Run | Yrd Mat Min Machines Accessed 2 | . 1 1 Terminals 1 | . 1 . Fabricators . | . . . Repair Stations . | . . . Recycling Units . | . . . Scanalyzers . | . . . Garrison Access . | . . . Total Hacks 3 | . 2 1 Successful 1 | . . 1 Failed 2 | . 2 . Catastrophic . | . . . Database Lockouts . | . . . Manual . | . . . Terminals 2 | . 2 . Fabricators . | . . . Repair Stations . | . . . Recycling Units . | . . . Scanalyzers . | . . . Garrison Access . | . . . Terminal Hacks 1 | . . 1 Open Door 1 | . . 1 Fabricator Hacks . | . . . Repair Station Hacks . | . . . Recycling Unit Hacks . | . . . Scanalyzer . | . . . Garrison Access Hacks . | . . . Unauthorized Hacks . | . . . Terminals . | . . . Fabricators . | . . . Repair Stations . | . . . Recycling Units . | . . . Scanalyzers . | . . . Garrison Access . | . . . Data Cores Recovered . | . . . Used . | . . . Hacking Detections 1 | . 1 . Full Trace Events . | . . . Feedback Events . | . . . Feedback Blocked . | . . . Robot Schematics Acquired . | . . . Robots Built . | . . . Authchips . | . . . Time . | . . . Total Robot Build Rating . | . . . Part Schematics Acquired . | . . . Parts Built . | . . . Authchips . | . . . Time . | . . . Total Part Build Rating . | . . . Parts Repaired . | . . . Time . | . . . Parts Recycled . | . . . Recycled Matter . | . . . Retrieved Matter . | . . . Retrieved Components . | . . . Parts Scanalyzed . | . . . Part Schematics Acquired . | . . . Parts Damaged . | . . . Bothacking | -11 -10 -10 ------------ Run | Yrd Mat Min Used RIF Installer . | . . . Robots Hacked . | . . . Non-combat . | . . . Combat . | . . . Robot Hacks Applied . | . . . Relay Couplers Released . | . . . Fabnet Peak Effective % . | . . . Robots Rewired . | . . . Allies Hacked . | . . . Hacks Repelled . | . . . Allies | -11 -10 -10 -------- Run | Yrd Mat Min Total Allies . | . . . Largest Group . | . . . Highest-Rated Group . | . . . Highest-Rated Ally . | . . . Total Orders . | . . . Ally Attacks . | . . . Total Damage . | . . . Kills . | . . . Allies Corrupted . | . . . Allies Melted . | . . . Intel | -11 -10 -10 ------- Run | Yrd Mat Min Active Infowar (turns) . | . . . Robot Analysis Total . | . . . Derelict Logs Recovered 2 | . . 2 Drone Launches . | . . . Drone Recoveries . | . . . Exploration | -11 -10 -10 ------------- Run | Yrd Mat Min Turns Passed 1028 | 193 278 557 Spaces Moved 598 | 81 130 387 Core 2 | 2 . . Treads 213 | 79 130 4 Legs 383 | . . 383 Wheels . | . . . Hover . | . . . Flight . | . . . Fastest Speed 50 | 50 160 120 Average Speed 134 | 157 160 120 Slowest Speed 190 | 160 160 190 Overloaded Moves . | . . . Propulsion Burnouts . | . . . Robots Hopped . | . . . Potential Cave-ins . | . . . Cave-ins Triggered . | . . . Exploration Rate (%) 33 | 6 23 72 Regions Visited 2 Branch Regions 1 Pre-discovered Areas 1 | . . 1 Known Exits Taken . | . . . Unknown Exits Taken 2 | 1 1 . Scrap Searched 1 | . . 1 Spaces Dug . | . . . Terrain Destroyed . | . . . Melee . | . . . Projectile . | . . . AOE . | . . . Terrain Rammed . | . . . Walls Destroyed . | . . . Machines Disabled . | . . . Actions | -11 -10 -10 --------- Run | Yrd Mat Min Total 712 | 113 166 433 Wait . | . . . Move 596 | 80 129 387 Hop . | . . . Pick Up 16 | 8 6 2 Fast Attach 12 | 6 3 3 Attach 2 | . . 2 Detach . | . . . Swap 3 | . . 3 Drop 15 | . 7 8 Fire 66 | 19 21 26 Melee . | . . . Ram . | . . . Kick 2 | . . 2 Crush . | . . . Escape Stasis . | . . . Rewire . | . . . Trap . | . . . Miscellaneous . | . . . Route ------- -11/Scrapyard -10/Materials -10/Mines History --------- Turn | Location | Event 7 | -11/Scrapyard | Discovered new exit (range 15) 194 | -11/Scrapyard | Entered Materials 343 | -10/Materials | Build established: Mutant 373 | -10/Materials | Discovered new exit (range 16) 472 | -10/Materials | Entered Mines 772 | -10/Mines | Assembled infested the area 842 | -10/Mines | Found the Drone Emporium 848 | -10/Mines | Found Prototype Device 887 | -10/Mines | Build established: Scavenger-Mutant 898 | -10/Mines | Learned location of Storage (-7) 1024 | -10/Mines | Core integrity fell below 50% 1028 | -10/Mines | Core integrity fell below 20% 1029 | -10/Mines | Destroyed by D-53 Grenadier with Mini Grenade Launcher Last Messages --------------- 01012_ Acquired 7 matter. 01013_ U-05 Engineer lays Concrete. 01014_ Dropped Lgt. Assault Rifle. 01014_ U-05 Engineer lays Concrete. 01015_ Acquired 17 matter. 01016_ U-05 Engineer lays Concrete. 01018_ Aluminum Leg destroyed. 01018_ U-05 Engineer lays Concrete. 01019_ U-05 Engineer destroyed. 01019_ U-05 Engineer lays Concrete. 01021_ K-01 Serf collects debris. 01022_ U-05 Engineer lays Concrete. 01023_ Lgt. Assault Rifle destroyed. 01023_ U-05 Engineer destroyed. 01023_ Imp. Assault Rifle destroyed. 01025_ K-01 Serf collects debris. 01027_ Lgt. Assault Rifle destroyed. 01029_ K-01 Serf collects debris. 01029_ Lgt. Nuclear Core destroyed. 01029_ Aluminum Leg destroyed. Map ----- +----------------------------------------------------+ | ??????????????# ###### ????????? | | ??????????????# #??????????? | | ??????????????######### #???????????? | | ??????????????????????## ##??????????? | | ???????????????????????## #??????????? | | ????????????????????????## ## #??????????? | | ?????????????????????????# ##?## ##??????????? | | ?????????????????????????# #????##????????????? | | ????????????????????????## #??????????????????? | | ???????????????????????## #??????????????????? | | ???????????????????????# #??????????????????? | | ???????????????????????## #?????????#####??### | | ????????????????????????## #?????##### ##?# | | ?????????????????????????# #?????# ^ ### # | | ????????????????????####### #?????# ## # | | ????????????????????# ### #????## # # | | ????????????????????? ?# ###### # ^^#### ## | | ?????????????????????# ## # #??# #? | | ???????????????????### # ##### #??# #? | | ???????????????????# # ##### ##??########??# #? | | ???????????? ???????# ### ##???????????# ## | | ??????????? % ###### ##??????????# | | ???????????? #??????????#### | | ????????????? !| #?????????????? | | ????????????????#### #?????????????? | | ????????????????# | @ ##?????????????? | | ????????????????## ! #??????????????? | | ????????????????# k #??????????????? | | ????????????????# # ##??????????????? | | ????????????????# < dd ######???????????????? | | ????????????????# ######????????????????????? | | ????????????????## ??????????????????????????? | | ?????????????????### ???????????????????????????? | | ???????????????????# ???????????????????????????? | | ??????????????????? ????????????????????????????? | | ??????????????????## ????????????????????????????? | | ???????????????????#?????????????????????????????? | | ?????????????????????????????????????????????????? | | ?????????????????????????????????????????????????? | | ?????????????????????????????????????????????????? | | ?????????????????????????????????????????????????? | | ?????????????????????????????????????????????????? | | ?????????????????????????????????????????????????? | | ?????????????????????????????????????????????????? | | ?????????????????????????????????????????????????? | | | | | | | | | | | +----------------------------------------------------+ Best States ------------- Heat Dissipation 25 Energy Generation 14 Energy Capacity 160 Matter Stores 300 Matter Capacity 300 Sight Range 16 Terrain Scan Density 10 Evasion (%) 55 Targeting Accuracy 6 Recoil Reduction 2 Item Schematics ----------------- None Robot Schematics ------------------ None Fabricated ------------ Nothing Repaired ---------- Nothing Alien Tech Used ----------------- None Achievements -------------- None Challenges ------------ None Game ------ Seed SupersonicThrowingLauncher Manual? 0 Play Time 00:09:39 Cumulative 72.8 hours Start 2025.09.10 @ 04:04:27 End 2025.09.10 @ 17:26:35 Sessions 1 Manual Loads 0 Difficulty Rogue Special Mode None Game No. 56 Rogue 56 Adventurer 0 Explorer 0 Win Type - Total 0 Types 0/0/0/0/0/0/0/0/0/0 Lore% 19 Gallery% 45 Achievement% 37 Wizard Run 0 Options --------- Layout 0 ASCII 0 Keyboard 0 Movement Arrows Keybinds 0 Fullscreen 1 Font 12/Smallcaps Map View 38x28 Zoom Use 98% Tactical HUD 1 Map Filters NONE Filters NONE Steam SD RUN: 7e490326-9942-474a-b471-840ecaf06011